Cogmind - Beta 17 @@@ ROGUE MODE // 2026.07.06 @ 18:40:35 Player: KuFish Result: Destroyed by as-98782 with Assembled Heavy Rifle Performance ------------- Evolutions (0) 0 Regions Visited (2) 400 Robots Destroyed (9) 45 Value Destroyed (247) 247 Prototype IDs (0) 0 Alien Tech Used (0) 0 Bonus (0) 0 TOTAL SCORE: 692 Bonus ------- None Cogmind --------- Core Integrity 0/250 Matter 300/300 Energy 250/250 System Corruption 0% Temperature Cool (0) Movement Walking (120) Location -10/Mines Parts ------- > --- POWER (1) -------- Ion Engine > --- PROPULSION (2) --- Aluminum Leg Aluminum Leg > --- UTILITY (2) ------ Heat Sink Small Storage Unit > --- WEAPON (2) ------- Small Laser Small Laser > --- INVENTORY (8) ---- Ion Engine Light Ion Engine Aluminum Leg Scrap Suit Small Laser Grenade Launcher Peak State ------------ > --- POWER ------------ Ion Engine > --- PROPULSION ------- Aluminum Leg Aluminum Leg > --- UTILITY ---------- Heat Sink Small Storage Unit > --- WEAPON ----------- Small Laser Small Laser > --- INVENTORY -------- Ion Engine Light Ion Engine Aluminum Leg Scrap Suit Small Laser Grenade Launcher [Rating: 8] Favorites ----------- Power Ion Engine Engine Ion Engine Propulsion Light Treads Treads Light Treads Leg Aluminum Leg Utility Small Storage Unit Device Heat Sink Storage Small Storage Unit Protection Light Armor Plating Weapon Small Laser Energy Gun Small Laser Ballistic Gun Light Assault Rifle Build | -11 -10 -10 ------- Run | Yrd Mat Min Slots Evolved . | . . . Power . | . . . Propulsion . | . . . Utility . | . . . Weapon . | . . . Parts Attached 14 | 5 9 . Power 2 | 1 1 . Engine 2 | 1 1 . Core . | . . . Reactor . | . . . Propulsion 4 | 2 2 . Treads 2 | 2 . . Leg 2 | . 2 . Wheel . | . . . Hover . | . . . Flight . | . . . Utility 3 | 1 2 . Device 1 | . 1 . Storage 1 | 1 . . Processor . | . . . Hackware . | . . . Protection 1 | . 1 . Artifact . | . . . Weapon 5 | 1 4 . Energy Gun 4 | 1 3 . Energy Cannon . | . . . Ballistic Gun 1 | . 1 . Ballistic Cannon . | . . . Launcher . | . . . Special Weapon . | . . . Impact Weapon . | . . . Slashing Weapon . | . . . Piercing Weapon . | . . . Special Melee Weapon . | . . . Unidentified Prototypes . | . . . Parts Lost 4 | . 4 . Power . | . . . Propulsion . | . . . Utility 1 | . 1 . Weapon 3 | . 3 . Highest Loss Streak 2 | . 2 . To Critical Strikes . | . . . Average Backups 4 | 3 4 5 Power 1 | . . 2 Propulsion 1 | 1 2 1 Utility . | . . . Weapon 1 | 1 1 2 Tool/Special . | . . . Unused Backups 8 | 2 . 6 Power 3 | 1 . 2 Propulsion 2 | 1 . 1 Utility 1 | . . 1 Weapon 2 | . . 2 Tool/Special . | . . . Average Slot Usage (%) 91 | . 84 100 Engine 14 | . 14 14 Treads 12 | . 23 . Leg 15 | . 4 28 Device 7 | . 2 14 Storage 14 | . 14 14 Protection 1 | . 3 . Energy Gun 20 | . 15 28 Ballistic Gun 3 | . 6 . Peak Build Rating 8 | 5 7 8 Average Rating 6 | 4 5 7 On Entrance 4 | . 5 7 Avg Prop Armor Cover (%) . | . . . Naked Turns . | . . . Heaviest Build 16 | 11 16 13 Greatest Support 40 | 40 40 20 Greatest Overweight (x) . | . . . Average Overweight (x) . | . . . Largest Inventory Capacity 8 | 8 8 8 Average Capacity 7 | 6 8 8 Most Carried 8 | 5 8 7 Average Carried 5 | 3 4 6 Final Capacity 8 | 8 8 8 Final Carried 7 | 4 5 7 Class Distribution -------------------- 100% | Mutant Dominant Class ---------------- Mutant | -10/Materials Mutant | -10/Mines Resources | -11 -10 -10 ----------- Run | Yrd Mat Min Matter Collected 364 | 208 156 . Remotely . | . . . Salvage Created 303 | . 303 . Parts 14 | . 14 . Haulers Intercepted . | . . . Recyclers Shooed . | . . . Parts Field Recycled . | . . . Retrieved Matter . | . . . Parts Self-Destructed . | . . . Prevented . | . . . Parts Restored . | . . . Kills | -11 -10 -10 ------- Run | Yrd Mat Min Combat Hostiles Destroyed 9 | . 9 . Guns 9 | . 9 . Classes Destroyed 2 | . 2 . Swarmer 3 | . 3 . Grunt 6 | . 6 . Best Kill Streak 3 | . 3 . Combat Bots Only 3 | . 3 . Max Kills in Single Turn 1 | . 1 . Gunslinging . | . . . Exploded . | . . . Melee . | . . . Uniques/NPCs Destroyed . | . . . Combat | -11 -10 -10 -------- Run | Yrd Mat Min Hostile Shots Fired 126 | . 118 8 Missed 33 | . 31 2 Hits 93 | . 87 6 Projectile 93 | . 87 6 Critical Strikes 1 | . 1 . Damage Taken 979 | . 881 98 Core 258 | . 184 74 Absorbed by Shields . | . . . Core Remaining (%) 100 | 100 . . Volleys Fired 61 | . 60 1 Largest 2 | . 2 2 Hottest 90 | . 90 80 Shots Fired 96 | . 94 2 Gun 96 | . 94 2 Cannon . | . . . Launcher . | . . . Special . | . . . Kinetic 35 | . 35 . Thermal 61 | . 59 2 Explosive . | . . . Electromagnetic . | . . . Robot Hit Streak 7 | . 7 6 Robot Miss Streak 8 | . 8 . Penetration Max . | . . . Secondary Targets . | . . . Shots Hit Robots 49 | . 47 2 Core Hits 18 | . 17 1 Critical Kills . | . . . Critical Parts Destroyed 1 | . 1 . Critical Strikes 1 | . 1 . Destroy 1 | . 1 . Melee Attacks . | . . . Impact . | . . . Slashing . | . . . Piercing . | . . . Sneak Attacks . | . . . Combat Hostiles . | . . . Follow-up Attacks . | . . . Damage Inflicted 477 | . 453 24 Guns 477 | . 453 24 Cannons . | . . . Explosions . | . . . Melee . | . . . Ramming . | . . . Kinetic 175 | . 175 . Thermal 302 | . 278 24 Explosive . | . . . Electromagnetic . | . . . Impact . | . . . Slashing . | . . . Piercing . | . . . Highest Corruption . | . . . Average Corruption . | . . . Corruption Purged . | . . . Corruption Blocked . | . . . Overload Shots . | . . . Overflow Damage . | . . . Projectiles . | . . . Explosions . | . . . Melee . | . . . Knockbacks . | . . . Impact . | . . . Kinetic . | . . . Secondary . | . . . Self-Inflicted Damage . | . . . Shots . | . . . Rammed . | . . . Targets Rammed . | . . . Kicked . | . . . Crushed . | . . . Highest Temperature 330 | . 330 . Average Temperature 118 | . 118 . Received Heat Transfer 327 | . 327 . Effects 3 | . 3 . Energy Bleed 1 | . 1 . Interference 2 | . 2 . Siege Activations . | . . . Martial Activations . | . . . Shielding Activations . | . . . Robots Disrupted . | . . . Combat Hostiles . | . . . Robots Corrupted . | . . . Combat Hostiles . | . . . Parts Fried . | . . . Impact Corruptions . | . . . Robots Melted . | . . . Combat Hostiles . | . . . Parts Melted 2 | . 2 . Heat Transferred 699 | . 649 50 Parts Sabotaged . | . . . Parts Stolen . | . . . Parts Stripped . | . . . Power Chain Reactions . | . . . Alert | -11 -10 -10 ------- Run | Yrd Mat Min Maximum Alert Level . | . . . Low Security (%) 100 | 100 100 100 Level 1 . | . . . Level 2 . | . . . Level 3 . | . . . Level 4 . | . . . Level 5 . | . . . High Security . | . . . Max Security . | . . . Peak Influence 165 | . 165 35 Initial 35 | . . 35 Average 42 | . 81 4 Influence Increases 295 | . 295 . Destroy 0b10 Robot/C 180 | . 180 . Destroy Leader 40 | . 40 . Lose Combat Pursuer 75 | . 75 . Influence Decreases 295 | . 204 91 Entered New Map 56 | . . 56 Time Decay 199 | . 164 35 Lost Part 40 | . 40 . Squads Dispatched 3 | . 3 . Investigation 1 | . 1 . Extermination . | . . . Reinforcement 2 | . 2 . Assault . | . . . Garrison . | . . . Intercept . | . . . Searches Triggered . | . . . Construction Impeded . | . . . Haulers Reinforced . | . . . Active Scanning Responses . | . . . Cargo Convoy Interrupts . | . . . Stealth | -11 -10 -10 --------- Run | Yrd Mat Min Distress Signals 2 | . 2 . Communications Jammed . | . . . Distress Signals . | . . . Times Spotted 27 | . 14 13 Peak Tracking Total 20 | . 5 20 Tactical Retreats 4 | . 4 . Traps | -11 -10 -10 ------- Run | Yrd Mat Min Traps Triggered . | . . . Indirectly . | . . . Trap Hack Attempts . | . . . Triggered . | . . . Disarmed . | . . . Reprogrammed . | . . . Reused . | . . . Traps Extracted . | . . . Installed . | . . . Triggered . | . . . Machines | -11 -10 -10 ---------- Run | Yrd Mat Min Machines Disabled . | . . . Max in Single Turn . | . . . Machines Repaired . | . . . Machines Dismantled . | . . . Machines Sabotaged . | . . . Overloaded Fab Kills . | . . . Hacking | -11 -10 -10 --------- Run | Yrd Mat Min Machines Accessed 1 | . 1 . Terminals 1 | . 1 . Fabricators . | . . . Repair Stations . | . . . Recycling Units . | . . . Scanalyzers . | . . . Garrison Access . | . . . Total Hacks 1 | . 1 . Successful 1 | . 1 . Failed . | . . . Catastrophic . | . . . Database Lockouts . | . . . Manual . | . . . Terminals 1 | . 1 . Fabricators . | . . . Repair Stations . | . . . Recycling Units . | . . . Scanalyzers . | . . . Garrison Access . | . . . Terminal Hacks 1 | . 1 . Dispatch Records 1 | . 1 . Fabricator Hacks . | . . . Repair Station Hacks . | . . . Recycling Unit Hacks . | . . . Scanalyzer . | . . . Garrison Access Hacks . | . . . Unauthorized Hacks . | . . . Terminals . | . . . Fabricators . | . . . Repair Stations . | . . . Recycling Units . | . . . Scanalyzers . | . . . Garrison Access . | . . . Data Cores Recovered . | . . . Used . | . . . Hacking Detections 1 | . 1 . Full Trace Events . | . . . Feedback Events . | . . . Feedback Blocked . | . . . Robot Schematics Acquired . | . . . Robots Built . | . . . Authchips . | . . . Time . | . . . Total Robot Build Rating . | . . . Part Schematics Acquired . | . . . Parts Built . | . . . Authchips . | . . . Time . | . . . Total Part Build Rating . | . . . Part Studies Acquired . | . . . Parts Repaired . | . . . Time . | . . . Parts Recycled . | . . . Recycled Matter . | . . . Retrieved Matter . | . . . Retrieved Components . | . . . Parts Scanalyzed . | . . . Part Schematics Acquired . | . . . Parts Damaged . | . . . Bothacking | -11 -10 -10 ------------ Run | Yrd Mat Min Used RIF Installer . | . . . Robots Hacked . | . . . Non-combat . | . . . Combat . | . . . Robot Hacks Applied . | . . . Relay Couplers Released . | . . . Fabnet Peak Effective % . | . . . Robots Rewired . | . . . Allies Hacked . | . . . Hacks Repelled . | . . . Allies | -11 -10 -10 -------- Run | Yrd Mat Min Total Allies . | . . . Largest Group . | . . . Highest-Rated Group . | . . . Highest-Rated Ally . | . . . Total Orders . | . . . Ally Attacks . | . . . Total Damage . | . . . Kills . | . . . Allies Corrupted . | . . . Allies Melted . | . . . Intel | -11 -10 -10 ------- Run | Yrd Mat Min Active Infowar (turns) . | . . . Robot Analysis Total . | . . . Derelict Logs Recovered . | . . . Drone Launches . | . . . Drone Recoveries . | . . . Exploration | -11 -10 -10 ------------- Run | Yrd Mat Min Turns Passed 920 | 111 455 354 Spaces Moved 553 | 70 191 292 Core 14 | 14 . . Treads 197 | 56 141 . Legs 342 | . 50 292 Wheels . | . . . Hover . | . . . Flight . | . . . Fastest Speed 50 | 50 120 120 Average Speed 132 | 138 149 120 Slowest Speed 160 | 160 160 120 Overloaded Moves . | . . . Propulsion Burnouts . | . . . Robots Hopped . | . . . Potential Cave-ins . | . . . Cave-ins Triggered . | . . . Exploration Rate (%) 27 | 4 32 47 Regions Visited 2 Branch Regions 1 Pre-discovered Areas . | . . . Known Exits Taken . | . . . Unknown Exits Taken 2 | 1 1 . Scrap Searched . | . . . Spaces Dug . | . . . Terrain Destroyed . | . . . Melee . | . . . Projectile . | . . . AOE . | . . . Terrain Rammed . | . . . Walls Destroyed . | . . . Machines Disabled . | . . . Actions | -11 -10 -10 --------- Run | Yrd Mat Min Total 654 | 87 273 294 Wait 1 | . 1 . Move 551 | 69 190 292 Hop . | . . . Pick Up 22 | 11 10 1 Fast Attach . | . . . Attach 11 | 5 6 . Detach . | . . . Swap 3 | . 3 . Drop 5 | 2 3 . Fire 61 | . 60 1 Melee . | . . . Ram . | . . . Kick . | . . . Crush . | . . . Escape Stasis . | . . . Rewire . | . . . Trap . | . . . Miscellaneous . | . . . Route ------- -11/Scrapyard -10/Materials -10/Mines History --------- Turn | Location | Event 10 | -11/Scrapyard | Discovered new exit (range 15) 112 | -11/Scrapyard | Entered Materials 113 | -10/Materials | Met a group of wandering Federalists 305 | -10/Materials | Build established: Mutant 332 | -10/Materials | Core integrity fell below 50% 558 | -10/Materials | Discovered new exit (range 7) 567 | -10/Materials | Entered Mines 632 | -10/Mines | Met a Derelict bent on vengeance 717 | -10/Mines | Found a Scrap Suit stashed away for nefarious purposes 720 | -10/Mines | Found Scrap Suit 904 | -10/Mines | Assembled infested the area 917 | -10/Mines | Core integrity fell below 20% 921 | -10/Mines | Destroyed by as-98782 with Assembled Heavy Rifle Last Messages --------------- K-01 Serf collects debris. A message is left with an item here: "H4-X0R! I managed to smuggle one out! Take this to the hideout, the fools near Old Recycling think they can use this tech to beat 0b10 one day, and now we just have to find a way to safely deliver this to MAIN.C to get on their good side and convince them to let us into the system." K-01 Serf collects debris. Acquired Scrap Suit. K-01 Serf collects debris. NW-9AE(g): "WHERE ARE YOU, UNAWARE TRASH?! VENGEANCE UPON YOU!" NW-9AE(g): "TASTE MY VENGEANCE!" K-01 Serf collects debris. NW-9AE(g): "TASTE MY VENGEANCE!" ALERT: Infestation in the mines, dispatching Demolisher response squad. [Achievement: Hunted] Map ----- +----------------------------------------------------+ | #??# ################????????????????????????? | | #??## #????????????????????????? | | #???## #????????????????????????? | | #????# ############## #????????????????????????? | | #????# #????????????? #????????????????????????? | | #????# #?????????????? ???????????????????????? | | ????## #?????????????? ??????????????????????? | | ???## #####??????????? ????????????????????? | | ??## #??????????? #????????????????????? | | ?## #?????????? ##????????????????????? | | ?# ##?????????? #?????????????????????? | | ?## #######?????? #?????????????????????? | | ??## ###### ##???? #?????????????????????? | | ???# ### ##??? ##????????????????????? | | ???# #?# ## ###? ###??????????????????? | | ???# #?# ### ## ##?????????????????? | | ???# #?# #?### #?????????????????? | | ??## ### #???## ??????????????? | | ?## #????## #??????????????? | | ## #####?????## """" ## #??????????????? | | # #?????????## """" ##????????????????????? | | ##?????????# """" #?????????????????????? | | ##?????????# #?????????????????????? | | #?????????# #?????????????????????? | | #?????????## ##????????????????????? | | ##??????????## @ #????????????????????? | | ##????????????### ## a #????????????????????? | | #???????????????# ## ##????????????????????? | | " #???????????????# ##?????????????????????? | | " #???????????????#### #??????????????????????? | | " ##??????????????????# #??????????????????????? | | #???????????????????#aa#??????????????????????? | | # #???????????????????a #??????????????????????? | | # #???????????????????aa ??????????????????????? | | # #???????????????????a ??????????????????????? | | # #?????????????????? a #??????????????????????? | | # #??????????????????aa #??????????????????????? | | #??????????????????a ???????????????????????? | | #??????????????????a ???????????????????????? | | #?????????????????? #???????????????????????? | | ??????????????????? #????????????????????????? | | ?????????????????????#?????????????????????????? | | ?????????????????????????????????????????????????? | | ?????????????????????????????????????????????????? | | ?????????????????????????????????????????????????? | | ?????????????????????????????????????????????????? | | ?????????????????????????????????????????????????? | | ?????????????????????????????????????????????????? | | ?????????????????????????????????????????????????? | | ?????????????????????????????????????????????????? | +----------------------------------------------------+ Best States ------------- Heat Dissipation 35 Energy Generation 10 Energy Capacity 250 Matter Stores 300 Matter Capacity 300 Sight Range 16 Terrain Scan Density 10 Armor Coverage 150 Evasion (%) 55 Recoil Reduction 2 Item Schematics ----------------- None Robot Schematics ------------------ None Fabricated ------------ Nothing Repaired ---------- Nothing Studied --------- None Alien Tech Used ----------------- None Achievements -------------- Hunted Challenges ------------ None Game ------ Seed SpreadMolecularBarrier Manual? 0 Play Time 00:10:23 Cumulative 10.6 hours Start 2026.07.06 @ 17:50:01 End 2026.07.06 @ 18:40:35 Sessions 1 Manual Loads 0 Difficulty Rogue Special Mode None Game No. 19 Rogue 19 Adventurer 0 Explorer 0 Win Type - Total 0 Types 0/0/0/0/0/0/0/0/0/0 Lore% 9 Gallery% 13 Achievement% 10 Wizard Run 0 Options --------- Layout 1 ASCII 0 Keyboard 0 Movement Arrows Keybinds 0 Fullscreen 2 Font 24/Smallcaps Map View 50x40 Zoom Use 0% Tactical HUD 0 Map Filters NONE Filters NONE Steam 1 RUN: f9637c5c-8353-4d0c-bc41-31299d158ba4